fUST/lending_fUST_20260129
["ID","MTS","AMOUNT","RATE_DAILY","PERIOD"]
[403965898,1769698241519,-1000.0,0.00014247,2]
[403965899,1769698241528,-1000.0,0.00014247,2]
[403965900,1769698241538,-160.9968606,0.00014247,2]
[403965901,1769698241547,-1000.0,0.00014247,2]
[403965902,1769698241556,-1000.0,0.00014247,2]
[403965903,1769698241564,-504.15902707,0.00014247,2]
[403965904,1769698241574,-1000.0,0.00014247,2]
[403965905,1769698241583,-1000.0,0.00014247,2]
[403965906,1769698241592,-1000.0,0.00014247,2]
[403965907,1769698241601,-1000.0,0.00014247,2]
[403965908,1769698241617,-500.0,0.00014247,2]
[403965909,1769698241626,-1000.0,0.00014247,2]
[403965910,1769698241635,-1134.23032778,0.00014247,2]
[403965911,1769698241643,-1000.0,0.00014247,2]
[403965913,1769698241651,-1102.21614882,0.00014247,2]
[403965914,1769698241661,-1500.0,0.00014368,2]
[403965915,1769698241671,-1500.0,0.00014368,2]
[403965916,1769698241680,-1500.0,0.00014368,2]
[403965918,1769698241689,-1500.0,0.00014368,2]
[403965920,1769698241698,-897.62397769,0.00014368,2]
[403965922,1769698241707,-1500.0,0.00014368,2]
[403965924,1769698241716,-196.99444629,0.00014368,2]
[403965925,1769698241725,-517.09664357,0.00014368,2]
[403965927,1769698241735,-1500.0,0.00014368,2]
[403965929,1769698241744,-1500.0,0.00014368,2]
[403965931,1769698241754,-1500.0,0.00014368,2]
[403965933,1769698241763,-520.07794953,0.00014368,2]
[403965935,1769698241772,-1502.6154559,0.00014368,2]
[403965937,1769698241781,-1500.0,0.00014368,2]
[403965939,1769698241792,-1268.34650551,0.00014368,2]
[403965941,1769698241802,-1500.0,0.00014368,2]
[403965943,1769698241811,-1107.3138929,0.00014368,2]
[403965945,1769698241820,-1500.0,0.00014368,2]
[403965947,1769698241830,-1500.0,0.00014368,2]
[403965949,1769698241839,-1007.51247725,0.00014368,2]
[403965951,1769698241848,-167.59538682,0.00014384,2]
[403965953,1769698241857,-1000.0,0.00014445,2]
[403965955,1769698241870,-170.22,0.000145,2]
[403965957,1769698241881,-473.9238647,0.00014503,2]
[403965959,1769698241890,-900.0,0.00014768,2]
[403965961,1769698241899,-822.54748319,0.00014795,2]
[403965963,1769698241912,-1065.0903288,0.00014795,2]
[403965965,1769698241921,-336.07837269,0.00014795,2]
[403965967,1769698241931,-1500.0,0.00014795,2]
[403965969,1769698241942,-501.10012348,0.00014795,2]
[403965971,1769698241952,-1500.0,0.00014795,2]
[403965973,1769698241961,-1500.0,0.00014795,2]
[403965975,1769698241970,-1500.0,0.00014795,2]
[403965977,1769698241979,-170.22,0.000149,2]
[403965979,1769698241988,-455.16966791,0.000149,2]
[403965981,1769698241997,-455.16966791,0.000149,2]
[403965983,1769698242006,-455.16966791,0.000149,2]
[403965984,1769698242016,-559.00085584,0.00014916,2]
[403965987,1769698242025,-500.0,0.00014916,2]
[403965988,1769698242035,-2000.0,0.00014916,2]
[403965991,1769698242044,-1674.31678051,0.00014916,2]
[403965993,1769698242054,-2001.01080598,0.00014916,2]
[403965994,1769698242063,-2000.0,0.00014916,2]
[403965996,1769698242071,-2000.0,0.00014916,2]
[403965998,1769698242080,-424.32204893,0.00014916,2]
[403966000,1769698242090,-2000.0,0.00014916,2]
[403966002,1769698242099,-2000.0,0.00014916,2]
[403966004,1769698242108,-2000.0,0.00014916,2]
[403966006,1769698242119,-2000.0,0.00014916,2]
[403966008,1769698242128,-170.22,0.000153,2]
[403966010,1769698242137,-38962.613198,0.000153,7]
[403966012,1769698242146,-600.0,0.00015316,2]
[403966014,1769698242157,-591.86,0.00015342,2]
[403966016,1769698242166,-10000.0,0.00015342,2]
[403966018,1769698242175,-1629.28367097,0.00015342,2]
[403966020,1769698242184,-2000.0,0.00015342,2]
[403966022,1769698242194,-1152.0,0.00015346,2]
[403966024,1769698242202,-1489.0,0.00015376,2]
[403966026,1769698242211,-458.519769,0.00015377,7]
[403966028,1769698242221,-161.0,0.000154,2]
[403966030,1769698242230,-7826.7,0.00015442,2]
[403966032,1769698242240,-2500.0,0.00015464,2]
[403966034,1769698242249,-2500.0,0.00015464,2]
[403966036,1769698242258,-1500.0,0.00015464,2]
[403966038,1769698242267,-2000.0,0.00015464,2]
[403966040,1769698242276,-500.0,0.00015464,2]
[403966042,1769698242285,-2500.0,0.00015464,2]
[403966044,1769698242294,-2500.0,0.00015464,2]
[403966046,1769698242303,-1369.0,0.00015468,2]
[403966048,1769698242312,-2150.0,0.00015468,2]
[403966050,1769698242320,-630.0,0.00015468,2]
[403966052,1769698242329,-529.312,0.00015468,2]
[403966054,1769698242339,-716.0,0.00015468,2]
[403966056,1769698242348,-151.0,0.000155,2]
[403966058,1769698242357,-1578.73,0.00015559,2]
[403966060,1769698242367,-5000.0,0.0001564,2]
[403966062,1769698242375,-170.22,0.000158,2]
[403966064,1769698242385,-4245.18375596,0.00015884,2]
[403966066,1769698242395,-1000.0,0.00015889,2]
[403966068,1769698242405,-244.0,0.00015889,2]
[403966070,1769698242414,-4585.197682,0.00015889,7]
[403966072,1769698242423,-2500.0,0.0001589,2]
[403966074,1769698242432,-226.0,0.00015984,2]
[403966076,1769698242441,-3000.0,0.00016012,2]
[403966078,1769698242451,-1504.66008898,0.00016012,2]
[403966080,1769698242460,-2500.0,0.00016012,2]
[403966082,1769698242469,-3085.83878744,0.00016012,2]
[403966084,1769698242478,-226.0,0.00016065,2]
[403966086,1769698242487,-250.0,0.00016097,2]
[403966087,1769698242496,-250.0,0.00016097,2]
[403966089,1769698242505,-229.51541308,0.00016097,2]
[403966092,1769698242515,-2773.56790519,0.00016097,2]
[403966093,1769698242524,-151.0,0.00016097,2]
[403966095,1769698242533,-693.3919763,0.00016097,2]
[403966097,1769698242546,-209.40437684,0.00016097,2]
[403966099,1769698242555,-217.15233878,0.00016097,2]
[403966101,1769698242565,-209.40437684,0.00016097,2]
[403966103,1769698242574,-225.18697532,0.00016097,2]
[403966105,1769698242583,-233.51889341,0.00016097,2]
[403966107,1769698242592,-242.15909246,0.00016097,2]
[403966109,1769698242601,-251.11897888,0.00016097,2]
[403966111,1769698242611,-260.4103811,0.00016097,2]
[403966114,1769698242620,-212.5608784,0.00016097,2]
[403966115,1769698242630,-270.0455652,0.00016097,2]
[403966117,1769698242639,-280.03725112,0.00016097,2]
[403966119,1769698242648,-30000.0,0.00016097,2]
[403966121,1769698242658,-290.39862941,0.00016097,2]
[403966123,1769698242668,-170.22,0.000162,2]
[403966125,1769698242677,-226.0,0.00016333,2]
[403966127,1769698242687,-226.0,0.00016402,2]
[403966129,1769698242696,-329.06139898,0.00016438,2]
[403966132,1769698242707,-155.31554479,0.00016438,2]
[403966133,1769698242716,-3000.0,0.00016438,2]
[403966135,1769698242725,-186.31,0.0001644,2]
[403966137,1769698242734,-208.0,0.00016468,2]
[403966139,1769698242744,-536.64908208,0.00016503,2]
[403966141,1769698242753,-11132.175199,0.00016524,7]
[403966156,1769698242763,-208.0,0.00016544,2]
[403966158,1769698242884,-1500.0,0.0001656,2]
[403966160,1769698242894,-170.22,0.000166,2]
[403966162,1769698242904,-225.0,0.0001663,3]
[403966164,1769698242915,-2876.18991768,0.00016645,2]
[403966166,1769698242924,-719.04747942,0.00016645,2]
[403966168,1769698242933,-217.15233878,0.00016645,2]
[403966170,1769698242944,-178.0,0.00016664,2]
[403966172,1769698242954,-226.0,0.0001669,2]
[403966174,1769698242963,-226.0,0.00016697,2]
[403966176,1769698242972,-208.0,0.00016787,2]
[403966178,1769698242982,-226.0,0.00016858,2]
[403966180,1769698242991,-1613.0,0.00016872,2]
[403966182,1769698243000,-226.0,0.00016924,2]
[403966184,1769698243010,-3500.0,0.00016986,2]
[403966186,1769698243020,-2737.81768824,0.00017,2]
[403966188,1769698243029,-151.0,0.00017,2]
[403966190,1769698243040,-170.22,0.00017,2]
[403966192,1769698243049,-208.0,0.00017089,2]
[403966194,1769698243059,-1310.05648,0.0001716,7]
[403966196,1769698243068,-226.0,0.00017161,2]
[403966198,1769698243078,-2982.60894464,0.00017193,2]
[403966200,1769698243087,-745.65223616,0.00017193,2]
[403966202,1769698243096,-201.80231893,0.00017193,2]
[403966204,1769698243106,-208.0,0.00017209,2]
[403966206,1769698243115,-208.0,0.00017296,2]
[403966208,1769698243125,-50953.09697053,0.00017328,2]
[403966210,1769698243135,-168.187296,0.00017328,7]
[403966212,1769698243144,-208.0,0.00017393,2]
[403966214,1769698243153,-170.22,0.000174,2]
[403966216,1769698243163,-226.0,0.0001741,2]
[403966218,1769698243172,-208.0,0.00017436,2]
[403966220,1769698243182,-226.0,0.00017456,2]
[403966222,1769698243191,-1000.0,0.00017478,2]
[403966224,1769698243201,-492.0,0.00017478,2]
[403966226,1769698243211,-208.0,0.0001748,2]
[403966228,1769698243220,-208.0,0.00017506,2]
[403966230,1769698243230,-226.0,0.00017508,2]
[403966232,1769698243239,-1319.71586935,0.00017534,2]
[403966234,1769698243249,-208.0,0.00017718,2]
[403966236,1769698243259,-3092.96547559,0.00017741,2]
[403966238,1769698243269,-512.85437483,0.00017741,2]
[403966240,1769698243278,-170.22,0.000178,2]
[403966242,1769698243290,-208.0,0.00017932,2]
[403966244,1769698243299,-208.0,0.00017995,2]
[403966246,1769698243309,-170.22,0.000182,2]
[403966248,1769698243318,-195.0,0.00018274,3]
[403966250,1769698243327,-3207.40519818,0.00018289,2]
[403966251,1769698243336,-200.0,0.00018356,2]
[403966253,1769698243346,-1369.0,0.00018468,2]
[403966255,1769698243355,-2150.0,0.00018468,2]
[403966257,1769698243365,-630.0,0.00018468,2]
[403966259,1769698243374,-418.0,0.00018468,2]
[403966261,1769698243383,-151.0,0.000185,2]
[403966263,1769698243392,-19433.04,0.000185,3]
[403966265,1769698243401,-599.37429947,0.00018503,2]
[403966267,1769698243411,-2258.0,0.0001855,2]
[403966269,1769698243420,-170.22,0.000186,2]
[403966271,1769698243429,-5000.0,0.00018768,2]
[403966273,1769698243438,-3326.07919052,0.00018837,2]
[403966275,1769698243448,-160.0,0.000189,3]
[403966277,1769698243457,-1000.0,0.000189,2]
[403966279,1769698243467,-1000.0,0.000189,2]
[403966281,1769698243476,-1000.0,0.000189,2]
[403966282,1769698243485,-1000.0,0.000189,2]
[403966284,1769698243495,-1000.0,0.000189,2]
[403966286,1769698243504,-1000.0,0.000189,2]
[403966288,1769698243513,-1000.0,0.000189,2]
[403966290,1769698243522,-1000.0,0.000189,2]
[403966292,1769698243531,-1000.0,0.000189,2]
[403966294,1769698243542,-1000.0,0.000189,2]
[403966296,1769698243551,-303.10001603,0.000189,2]
[403966298,1769698243561,-303.10001603,0.000189,2]
[403966300,1769698243570,-251.95315776,0.00018904,2]
[403966302,1769698243580,-880.632,0.0001895,2]
[403966304,1769698243588,-170.22,0.00019,2]
[403966306,1769698243598,-178.0,0.00019082,2]
[403966308,1769698243607,-303.10001603,0.00019089,2]
[403966310,1769698243616,-303.10001603,0.00019089,2]
[403966312,1769698243625,-5566.087599,0.00019125,7]
[403966314,1769698243634,-508.1504,0.00019178,2]
[403966316,1769698243644,-508.1504,0.00019178,2]
[403966318,1769698243653,-508.1504,0.00019178,2]
[403966320,1769698243665,-200.0,0.00019178,2]
[403966321,1769698243674,-508.1504,0.00019178,2]
[403966323,1769698243683,-508.1504,0.00019178,2]
[403966326,1769698243693,-508.1504,0.00019178,2]
[403966328,1769698243703,-508.1504,0.00019178,2]
[403966329,1769698243712,-508.1504,0.00019178,2]
[403966331,1769698243721,-505.94,0.00019178,2]
[403966333,1769698243731,-508.1504,0.00019178,2]
[403966335,1769698243740,-508.1504,0.00019178,2]
[403966337,1769698243750,-508.1504,0.00019178,2]
[403966340,1769698243760,-508.1504,0.00019178,2]
[403966341,1769698243770,-508.1504,0.00019178,2]
[403966343,1769698243780,-508.1504,0.00019178,2]
[403966345,1769698243791,-200.0,0.00019178,2]
[403966347,1769698243801,-1578.17,0.000192,2]
[403966349,1769698243811,-172.0,0.000192,2]
[403966351,1769698243821,-168.19,0.000192,2]
[403966353,1769698243831,-163.15,0.000192,2]
[403966355,1769698243841,-3938.74,0.000192,2]
[403966357,1769698243852,-1000.0,0.00019226,2]
[403966359,1769698243861,-791.0,0.00019226,2]
[403966361,1769698243874,-303.10001603,0.00019278,2]
[403966363,1769698243884,-303.10001603,0.00019278,2]
[403966365,1769698243895,-3449.14412057,0.00019385,2]
[403966368,1769698243908,-303.10001603,0.00019467,2]
[403966369,1769698243918,-303.10001603,0.00019467,2]
[403966372,1769698243928,-170.22,0.000195,2]
[403966373,1769698243937,-780.0,0.000196,2]
[403966375,1769698243946,-303.10001603,0.00019656,2]
[403966377,1769698243956,-151.55000802,0.00019656,2]
[403966379,1769698243965,-454.65002405,0.00019845,4]
[403966381,1769698243976,-170.22,0.000199,2]
[403966383,1769698243985,-198.0,0.00019918,3]
[403966385,1769698243994,-800.0,0.0001992,2]
[403966387,1769698244003,-3576.76245303,0.00019933,2]
[403966389,1769698244013,-151.0,0.0002,2]
[403966391,1769698244022,-508.1496,0.0002,4]
[403966393,1769698244031,-508.1504,0.0002,4]
[403966395,1769698244046,-508.1504,0.0002,4]
[403966397,1769698244055,-508.1504,0.0002,4]
[403966399,1769698244064,-508.1504,0.0002,4]
[403966401,1769698244073,-508.1504,0.0002,4]
[403966402,1769698244082,-508.1504,0.0002,4]
[403966405,1769698244094,-508.1504,0.0002,4]
[403966407,1769698244104,-508.1504,0.0002,4]
[403966408,1769698244114,-508.1504,0.0002,4]
[403966409,1769698244124,-508.1504,0.0002,4]
[403966410,1769698244134,-508.1504,0.0002,4]
[403966411,1769698244144,-508.1504,0.0002,4]
[403966412,1769698244154,-454.65002405,0.00020034,4]
[403966413,1769698244164,-454.65002405,0.00020223,4]
[403966414,1769698244174,-170.22,0.000203,2]
[403966415,1769698244184,-447.376,0.000203,2]
[403966416,1769698244196,-178.786,0.000203,2]
[403966418,1769698244205,-5000.0,0.00020332,2]
[403966420,1769698244215,-3162.0,0.00020395,2]
[403966422,1769698244224,-508.1492,0.00020411,5]
[403966424,1769698244233,-508.1504,0.00020411,5]
[403966426,1769698244243,-508.1504,0.00020411,5]
[403966428,1769698244252,-508.1504,0.00020411,5]
[403966430,1769698244261,-308.1492,0.00020411,5]
[403966432,1769698244270,-508.1504,0.00020411,5]
[403966434,1769698244280,-508.1504,0.00020411,5]
[403966436,1769698244293,-508.1504,0.00020411,5]
[403966439,1769698244301,-508.1504,0.00020411,5]
[403966441,1769698244310,-508.1504,0.00020411,5]
[403966443,1769698244319,-508.1504,0.00020411,5]
[403966445,1769698244328,-508.1504,0.00020411,5]
[403966448,1769698244337,-454.65002405,0.00020412,4]
[403966451,1769698244347,-662.09951685,0.00020503,2]
[403966454,1769698244356,-1820.994012,0.00020548,2]
[403966457,1769698244365,-454.65002405,0.00020601,4]
[403966460,1769698244374,-4245.18375593,0.00020617,2]
[403966461,1769698244384,-170.22,0.000207,2]
[403966463,1769698244393,-1578.17,0.000209,2]
[403966466,1769698244402,-151.0,0.000209,4]
[403966468,1769698244412,-800.0,0.00020991,2]
[403966470,1769698244421,-170.22,0.000211,2]
[403966472,1769698244430,-1000.0,0.00021149,10]
[403966475,1769698244439,-1000.0,0.00021149,10]
[403966476,1769698244448,-5400.27184973,0.000212,2]
[403966479,1769698244457,-5400.27184972,0.000212,2]
[403966480,1769698244466,-5400.27184972,0.000212,2]
[403966483,1769698244477,-5400.27184972,0.000212,2]
[403966485,1769698244486,-163.15,0.000212,2]
[403966487,1769698244495,-3938.74,0.000212,2]
[403966489,1769698244504,-800.0,0.00021366,2]
[403966491,1769698244513,-500.0,0.00021409,2]
[403966493,1769698244523,-500.0,0.00021409,2]
[403966495,1769698244532,-800.0,0.00021434,2]
[403966497,1769698244542,-1369.0,0.00021468,2]
[403966499,1769698244552,-2150.0,0.00021468,2]
[403966501,1769698244561,-418.0,0.00021468,2]
[403966503,1769698244570,-151.0,0.000215,3]
[403966505,1769698244579,-170.22,0.000215,2]
[403966507,1769698244588,-200.0,0.00021562,5]
[403966509,1769698244598,-170.22,0.000219,2]
[403966511,1769698244607,-150.49482106,0.00021918,2]
[403966513,1769698244616,-1285.71398926,0.00021924,2]
[403966515,1769698244626,-5142.85595706,0.00021924,2]
[403966517,1769698244635,-1073.09136233,0.00021924,2]
[403966518,1769698244645,-682.18010653,0.00021924,2]
[403966520,1769698244654,-2725.99170568,0.00021924,2]
[403966523,1769698244664,-1002.65217682,0.00021924,2]
[403966525,1769698244674,-4010.6087073,0.00021924,2]
[403966527,1769698244683,-998.50079272,0.00021924,2]
[403966528,1769698244692,-3994.00317086,0.00021924,2]
[403966530,1769698244701,-992.79468816,0.00021924,2]
[403966533,1769698244710,-3971.17875263,0.00021924,2]
[403966535,1769698244719,-549.91,0.00022,7]
[403966537,1769698244729,-167.0,0.00022,2]
[403966539,1769698244738,-800.0,0.0002211,2]
[403966541,1769698244747,-800.0,0.00022201,2]
[403966542,1769698244756,-170.22,0.000223,2]
[403966545,1769698244766,-296.6562392,0.0002235,2]
[403966547,1769698244775,-267.0,0.0002239,2]
[403966549,1769698244784,-4427.0,0.00022423,2]
[403966551,1769698244796,-724.82473424,0.00022503,2]
[403966553,1769698244804,-1578.17,0.000227,14]
[403966555,1769698244814,-170.22,0.000227,2]
[403966557,1769698244823,-475.0,0.00022739,7]
[403966559,1769698244832,-236.762153,0.00022748,2]
[403966561,1769698244840,-194.7135632,0.00022748,2]
[403966563,1769698244850,-623.2480812,0.00022748,2]
[403966564,1769698244859,-185.4706062,0.00022748,2]
[403966566,1769698244873,-194.7135632,0.00022748,2]
[403966569,1769698244882,-604.1333812,0.00022748,2]
[403966570,1769698244892,-194.7135632,0.00022748,2]
[403966572,1769698244902,-604.1333812,0.00022748,2]
[403966574,1769698244912,-185.4706062,0.00022748,2]
[403966576,1769698244921,-194.7135632,0.00022748,2]
[403966578,1769698244930,-185.4706062,0.00022748,2]
[403966580,1769698244940,-604.1333812,0.00022748,2]
[403966582,1769698244949,-194.7135632,0.00022748,2]
[403966584,1769698244959,-185.4706062,0.00022748,2]
[403966587,1769698244969,-194.7135632,0.00022748,2]
[403966589,1769698244978,-185.4706062,0.00022748,2]
[403966591,1769698244987,-185.4706062,0.00022748,2]
[403966593,1769698244997,-185.4706062,0.00022748,2]
[403966594,1769698245006,-194.7135632,0.00022748,2]
[403966597,1769698245015,-185.4706062,0.00022748,2]
[403966599,1769698245024,-194.7135632,0.00022748,2]
[403966601,1769698245033,-800.0,0.00022964,2]
[403966603,1769698245048,-151.0,0.00023,7]
[403966604,1769698245056,-160.0,0.00023,3]
[403966606,1769698245066,-1041.66666667,0.00023,3]
[403966609,1769698245078,-710.0,0.00023043,3]
[403966611,1769698245088,-217.43292674,0.0002305,2]
[403966613,1769698245097,-3938.74,0.000231,2]
[403966615,1769698245107,-170.22,0.000232,2]
[403966617,1769698245116,-710.0,0.000232,3]
[403966619,1769698245125,-202.0,0.00023205,9]
[403966621,1769698245134,-1000.0,0.00023264,10]
[403966623,1769698245143,-1000.0,0.00023264,10]
[403966624,1769698245152,-579.0,0.00023264,10]
[403966627,1769698245161,-161.0,0.00023363,3]
[403966629,1769698245170,-1264.994,0.0002346,5]
[403966630,1769698245179,-1000.0,0.0002348,5]
[403966632,1769698245189,-1000.0,0.000235,5]
[403966634,1769698245198,-1000.490761,0.000235,2]
[403966636,1769698245207,-645.22459325,0.000235,2]
[403966638,1769698245217,-645.22459325,0.000235,2]
[403966640,1769698245228,-800.0,0.00023515,2]
[403966642,1769698245237,-1527.88100648,0.0002352,2]
[403966644,1769698245246,-1527.88100648,0.0002352,2]
[403966646,1769698245256,-1527.88100648,0.0002352,2]
[403966648,1769698245265,-1527.88100648,0.0002352,2]
[403966650,1769698245274,-1527.88100648,0.0002352,2]
[403966652,1769698245283,-1527.88100648,0.0002352,2]
[403966655,1769698245295,-1527.88100648,0.0002352,2]
[403966656,1769698245304,-3661311.53965845,0.0002352,2]
[403966659,1769698245314,-764.2295392,0.0002354,2]
[403966660,1769698245323,-274.54,0.000236,2]
[403966662,1769698245333,-163.15,0.000236,7]
[403966664,1769698245343,-170.22,0.000236,2]
[403966667,1769698245353,-4302.51189718,0.000237,14]
[403966669,1769698245363,-549.91,0.000237,7]
[403966671,1769698245372,-239.9,0.000238,10]
[403966672,1769698245382,-167.0,0.00023849,3]
[403966674,1769698245391,-2333.65151404,0.00023936,4]
[403966676,1769698245401,-400.37693488,0.00024,30]
[403966678,1769698245411,-274.54,0.00024,2]
[403966680,1769698245420,-160.0,0.00024,7]
[403966682,1769698245430,-1041.66666667,0.00024,7]
[403966685,1769698245439,-170.22,0.00024,2]
[403966687,1769698245449,-153.0,0.00024392,2]
[403966700,1769698245563,-153.0,0.00024392,2]
[403966702,1769698245572,-153.0,0.00024392,2]
[403966704,1769698245581,-153.0,0.00024392,2]
[403966706,1769698245590,-153.0,0.00024392,2]
[403966708,1769698245604,-153.0,0.00024392,2]
[403966710,1769698245613,-274.54,0.000244,2]
[403966712,1769698245622,-1578.17,0.000244,14]
[403966714,1769698245631,-170.22,0.000244,2]
[403966716,1769698245641,-2356.82241094,0.00024424,4]
[403966718,1769698245651,-1369.0,0.00024468,2]
[403966720,1769698245660,-2150.0,0.00024468,2]
[403966722,1769698245670,-418.0,0.00024468,2]
[403966724,1769698245679,-151.0,0.000245,5]
[403966726,1769698245689,-787.54995163,0.00024503,2]
[403966728,1769698245697,-150.0,0.00024658,2]
[403966730,1769698245707,-380.0,0.00024658,2]
[403966732,1769698245716,-274.54,0.000248,2]
[403966734,1769698245725,-1896.32290497,0.000248,2]
[403966736,1769698245734,-170.22,0.000248,2]
[403966738,1769698245743,-204.0,0.00024849,14]
[403966740,1769698245752,-1325.61,0.00024899,5]
[403966742,1769698245761,-200.0,0.00024899,2]
[403966744,1769698245771,-3938.74,0.000249,2]
[403966746,1769698245780,-387539.906496,0.000249,2]
[403966748,1769698245791,-1215.69584,0.0002498,5]
[403966750,1769698245800,-1000.0,0.00025,5]
[403966752,1769698245809,-1325.61,0.00025017,5]
[403966754,1769698245819,-423.67,0.000251,7]
[403966756,1769698245828,-274.54,0.000252,2]
[403966758,1769698245837,-549.91,0.000252,7]
[403966760,1769698245846,-170.22,0.000252,2]
[403966762,1769698245855,-350.20523241,0.00025205,2]
[403966764,1769698245864,-153.0,0.00025213,2]
[403966766,1769698245876,-153.0,0.00025213,2]
[403966768,1769698245884,-153.0,0.00025213,2]
[403966770,1769698245895,-153.0,0.00025213,2]
[403966772,1769698245905,-153.0,0.00025213,2]
[403966774,1769698245916,-153.0,0.00025213,2]
[403966776,1769698245925,-153.0,0.00025213,2]
[403966778,1769698245934,-153.0,0.00025213,2]
[403966780,1769698245943,-153.0,0.00025213,2]
[403966782,1769698245951,-405.665412,0.00025213,2]
[403966784,1769698245962,-163.15,0.000253,7]
[403966786,1769698245971,-324.837658,0.00025342,2]
[403966788,1769698245980,-4245.18375593,0.00025349,2]
[403966790,1769698245989,-2347.06421629,0.00025393,4]
[403966792,1769698245998,-900.0,0.00025469,3]
[403966794,1769698246007,-1000.0,0.000255,2]
[403966796,1769698246016,-1000.0,0.0002559,10]
[403966798,1769698246025,-1000.0,0.0002559,10]
[403966800,1769698246034,-1000.0,0.0002559,10]
[403966802,1769698246044,-274.54,0.000256,2]
[403966804,1769698246053,-170.22,0.000256,2]
[403966806,1769698246062,-204.26,0.00025829,2]
[403966808,1769698246071,-1578.17,0.000259,14]
[403966810,1769698246080,-306.0,0.00025989,2]
[403966812,1769698246091,-274.54,0.00026,2]
[403966815,1769698246100,-151.0,0.00026,19]
[403966817,1769698246109,-170.22,0.00026,2]
[403966818,1769698246118,-172.0,0.00026,7]
[403966820,1769698246127,-180.00360007,0.00026218,2]
[403966822,1769698246136,-274.54,0.000264,2]
[403966824,1769698246145,-549.91,0.000264,7]
[403966827,1769698246155,-170.22,0.000264,2]
[403966828,1769698246164,-223.0,0.00026493,20]
[403966830,1769698246174,-850.27516901,0.00026503,2]
[403966832,1769698246183,-200.0,0.0002654,14]
[403966835,1769698246193,-274.54,0.000268,2]
[403966837,1769698246202,-163.15,0.000268,7]
[403966839,1769698246211,-170.22,0.000268,2]
[403966841,1769698246220,-389.3154552,0.00026824,2]
[403966842,1769698246229,-172.0,0.00027185,7]
[403966844,1769698246238,-274.54,0.000273,2]
[403966846,1769698246247,-170.22,0.000273,2]
[403966848,1769698246256,-1369.0,0.00027468,2]
[403966851,1769698246266,-2150.0,0.00027468,2]
[403966853,1769698246275,-418.0,0.00027468,2]
[403966854,1769698246284,-1578.17,0.000275,14]
[403966857,1769698246295,-151.0,0.000275,15]
[403966859,1769698246304,-274.54,0.000277,2]
[403966860,1769698246313,-170.22,0.000277,2]
[403966862,1769698246322,-578.0,0.0002778,3]
[403966865,1769698246331,-549.91,0.000278,7]
[403966867,1769698246341,-250.0,0.00027945,5]
[403966869,1769698246350,-250.0,0.00027945,5]
[403966871,1769698246359,-153.6374367,0.00027951,30]
[403966873,1769698246368,-442.0195791,0.00027951,30]
[403966875,1769698246377,-200.0,0.00028,2]
[403966877,1769698246386,-200.0,0.00028,2]
[403966878,1769698246396,-200.0,0.00028,2]
[403966881,1769698246405,-212.06874983,0.00028,2]
[403966883,1769698246414,-200.0,0.00028,2]
[403966884,1769698246423,-200.0,0.00028,2]
[403966886,1769698246433,-200.0,0.00028,2]
[403966888,1769698246443,-200.0,0.00028,2]
[403966890,1769698246452,-200.0,0.00028,2]
[403966892,1769698246461,-200.0,0.00028,2]
[403966894,1769698246469,-200.66605106,0.00028,2]
[403966896,1769698246478,-176.93253329,0.00028031,5]